[Event "Late-Titled-Tuesday-Blitz-September-05-2023"]
[Site "Chess.com"]
[Date "2023.09.05"]
[Round "2"]
[White "Chessdreamer2020"]
[Black "copanchess"]
[Result "0-1"]
[WhiteElo "2499"]
[BlackElo "2174"]
[TimeControl "180+1"]
[EndTime "14:17:46 PDT"]
[Termination "copanchess won by checkmate"]

1. e4 {[%clk 0:03:00.6]} 1... e5 {[%clk 0:02:58.7]} 2. Nf3 {[%clk 0:03:00.1]}
2... Nc6 {[%clk 0:02:59]} 3. Bb5 {[%clk 0:03:00.3]} 3... a6 {[%clk 0:02:58.1]}
4. Bxc6 {[%clk 0:03:00.2]} 4... dxc6 {[%clk 0:02:57.1]} 5. Nc3 {[%clk
0:03:01.1]} 5... Bg4 {[%clk 0:02:55.4]} 6. h3 {[%clk 0:03:00.9]} 6... Bxf3
{[%clk 0:02:45.4]} 7. Qxf3 {[%clk 0:03:01.8]} 7... Bd6 {[%clk 0:02:43.9]} 8. Qg3
{[%clk 0:03:00.7]} 8... Ne7 {[%clk 0:02:37.4]} 9. Qxg7 {[%clk 0:02:44.5]} 9...
Rg8 {[%clk 0:02:35.6]} 10. Qxh7 {[%clk 0:02:44.6]} 10... Rxg2 {[%clk 0:02:34.3]}
11. d3 {[%clk 0:02:43.3]} 11... Qd7 {[%clk 0:02:30.4]} 12. Be3 {[%clk
0:02:34.1]} 12... Qe6 {[%clk 0:02:25.2]} 13. O-O-O {[%clk 0:02:24.2]} 13...
O-O-O {[%clk 0:02:24.6]} 14. Kb1 {[%clk 0:02:17.6]} 14... Bb4 {[%clk 0:02:23.5]}
15. Ne2 {[%clk 0:02:12.2]} 15... Rg6 {[%clk 0:02:16.2]} 16. Ng3 {[%clk
0:02:05.6]} 16... c5 {[%clk 0:02:01.5]} 17. Qh5 {[%clk 0:01:57.8]} 17... Qb6
{[%clk 0:01:24.9]} 18. Qxe5 {[%clk 0:01:52.6]} 18... Re6 {[%clk 0:01:24.3]} 19.
Qh5 {[%clk 0:01:39.6]} 19... Bc3 {[%clk 0:01:22.8]} 20. Bc1 {[%clk 0:01:38.4]}
20... Qb4 {[%clk 0:01:17.3]} 21. Ne2 {[%clk 0:01:29.1]} 21... Bxb2 {[%clk
0:01:11.9]} 22. Bxb2 {[%clk 0:01:28.8]} 22... Rb6 {[%clk 0:01:12.1]} 23. Qe5
{[%clk 0:01:23]} 23... Rd4 {[%clk 0:01:11.2]} 24. Kc1 {[%clk 0:01:12.9]} 24...
Qxb2+ {[%clk 0:01:09.7]} 25. Kd2 {[%clk 0:01:13.8]} 25... Rxd3+ {[%clk
0:01:09.3]} 26. Kxd3 {[%clk 0:01:13.7]} 26... Qxe5 {[%clk 0:01:09.9]} 27. f3
{[%clk 0:01:07.6]} 27... Rd6+ {[%clk 0:01:00.7]} 28. Ke3 {[%clk 0:01:07.9]}
28... Rxd1 {[%clk 0:00:55.1]} 29. Rxd1 {[%clk 0:01:08.8]} 29... Nf5+ {[%clk
0:00:54.8]} 30. Kf2 {[%clk 0:01:08.6]} 30... Qh2+ {[%clk 0:00:52.7]} 31. Ke1
{[%clk 0:01:09.1]} 31... Ng3 {[%clk 0:00:40.3]} 32. Nxg3 {[%clk 0:01:07.2]}
32... Qxg3+ {[%clk 0:00:40.4]} 33. Ke2 {[%clk 0:01:08.1]} 33... Qxh3 {[%clk
0:00:38.2]} 34. Rf1 {[%clk 0:01:08.2]} 34... Qg2+ {[%clk 0:00:37]} 35. Rf2
{[%clk 0:01:08]} 35... Qg1 {[%clk 0:00:36.3]} 36. f4 {[%clk 0:01:07.8]} 36...
Qc1 {[%clk 0:00:35.6]} 37. Kf3 {[%clk 0:01:07.5]} 37... Kd7 {[%clk 0:00:34.6]}
38. e5 {[%clk 0:01:06.6]} 38... Ke6 {[%clk 0:00:34.6]} 39. Rh2 {[%clk
0:01:01.5]} 39... f5 {[%clk 0:00:34.2]} 40. Rh6+ {[%clk 0:00:58.8]} 40... Kd5
{[%clk 0:00:33.9]} 41. Rh7 {[%clk 0:00:57.4]} 41... Qf1+ {[%clk 0:00:32.7]} 42.
Ke3 {[%clk 0:00:56.5]} 42... Qe1+ {[%clk 0:00:31.7]} 43. Kf3 {[%clk 0:00:56.7]}
43... Qe4+ {[%clk 0:00:31.5]} 44. Kg3 {[%clk 0:00:56.2]} 44... Qe3+ {[%clk
0:00:31.7]} 45. Kg2 {[%clk 0:00:56.2]} 45... Qxf4 {[%clk 0:00:31.6]} 46. Rxc7
{[%clk 0:00:56.4]} 46... Qxe5 {[%clk 0:00:28.5]} 47. Rxb7 {[%clk 0:00:56.1]}
47... Kc4 {[%clk 0:00:27.6]} 48. Rb3 {[%clk 0:00:48.2]} 48... f4 {[%clk
0:00:26.9]} 49. Rf3 {[%clk 0:00:47.2]} 49... Qe4 {[%clk 0:00:26.4]} 50. Kf2
{[%clk 0:00:45.2]} 50... Kd4 {[%clk 0:00:25.8]} 51. Kf1 {[%clk 0:00:46.1]} 51...
Qxf3+ {[%clk 0:00:25.3]} 52. Kg1 {[%clk 0:00:44.6]} 52... Qe2 {[%clk 0:00:24.2]}
53. c4 {[%clk 0:00:45.5]} 53... f3 {[%clk 0:00:23.3]} 54. a4 {[%clk 0:00:46.4]}
54... Qg2# {[%clk 0:00:23.1]} 0-1

[Event "Late-Titled-Tuesday-Blitz-September-05-2023"]
[Site "Chess.com"]
[Date "2023.09.05"]
[Round "2"]
[White "EsmeraldasAnderson03"]
[Black "Maluco_do_Natal_00"]
[Result "1-0"]
[WhiteElo "2405"]
[BlackElo "1970"]
[TimeControl "180+1"]
[EndTime "14:17:47 PDT"]
[Termination "EsmeraldasAnderson03 won on time"]

1. d4 {[%clk 0:02:58.8]} 1... d5 {[%clk 0:02:59.4]} 2. c4 {[%clk 0:02:52.8]}
2... c6 {[%clk 0:02:58.8]} 3. cxd5 {[%clk 0:02:52.9]} 3... cxd5 {[%clk
0:02:58.4]} 4. Nc3 {[%clk 0:02:53.8]} 4... Nc6 {[%clk 0:02:58.9]} 5. Bf4 {[%clk
0:02:54.4]} 5... Nf6 {[%clk 0:02:58.9]} 6. e3 {[%clk 0:02:55]} 6... a6 {[%clk
0:02:59.5]} 7. Rc1 {[%clk 0:02:55]} 7... Bg4 {[%clk 0:02:30.7]} 8. Qb3 {[%clk
0:02:22.7]} 8... Na5 {[%clk 0:02:28.5]} 9. Qa4+ {[%clk 0:02:23.2]} 9... Nc6
{[%clk 0:02:25.1]} 10. Bd3 {[%clk 0:02:18.2]} 10... e6 {[%clk 0:02:20.1]} 11.
Nf3 {[%clk 0:02:13.8]} 11... Bxf3 {[%clk 0:01:57.2]} 12. gxf3 {[%clk 0:02:13.7]}
12... Be7 {[%clk 0:01:56]} 13. Qb3 {[%clk 0:02:04.4]} 13... Na5 {[%clk
0:01:54.9]} 14. Qc2 {[%clk 0:02:04.5]} 14... b5 {[%clk 0:01:49.9]} 15. Rg1
{[%clk 0:02:03.7]} 15... g6 {[%clk 0:01:30.9]} 16. Nxb5 {[%clk 0:01:29.4]} 16...
axb5 {[%clk 0:01:14.8]} 17. Bxb5+ {[%clk 0:01:30.3]} 17... Kf8 {[%clk
0:01:08.8]} 18. Bc7 {[%clk 0:01:20.1]} 18... Qc8 {[%clk 0:01:01.5]} 19. Bxa5
{[%clk 0:00:34.2]} 19... Qxc2 {[%clk 0:00:48.3]} 20. Rxc2 {[%clk 0:00:34.7]}
20... Rxa5 {[%clk 0:00:45.6]} 21. a4 {[%clk 0:00:33.4]} 21... Kg7 {[%clk
0:00:31.7]} 22. Ke2 {[%clk 0:00:28.9]} 22... Rb8 {[%clk 0:00:19.6]} 23. Rc7
{[%clk 0:00:21.1]} 23... Bd6 {[%clk 0:00:11.4]} 24. Rc6 {[%clk 0:00:17]} 24...
Bf8 {[%clk 0:00:08.2]} 25. Rb1 {[%clk 0:00:12.1]} 25... Raxb5 {[%clk 0:00:07.9]}
26. axb5 {[%clk 0:00:11.9]} 26... Rxb5 {[%clk 0:00:08.5]} 27. b3 {[%clk
0:00:11.8]} 27... Bb4 {[%clk 0:00:07.3]} 28. Ra1 {[%clk 0:00:10.8]} 28... Rb7
{[%clk 0:00:03.4]} 29. Kd3 {[%clk 0:00:10.4]} 29... Ne8 {[%clk 0:00:02.1]} 30.
Raa6 {[%clk 0:00:09.3]} 30... Nf6 {[%clk 0:00:01.5]} 31. Kc2 {[%clk 0:00:08.6]}
1-0

[Event "Late-Titled-Tuesday-Blitz-September-05-2023"]
[Site "Chess.com"]
[Date "2023.09.05"]
[Round "2"]
[White "Sinquefield"]
[Black "Sacbutt"]
[Result "1/2-1/2"]
[WhiteElo "2466"]
[BlackElo "2266"]
[TimeControl "180+1"]
[EndTime "14:17:48 PDT"]
[Termination "Game drawn by repetition"]

1. e4 {[%clk 0:03:00.9]} 1... e5 {[%clk 0:02:58.5]} 2. Nf3 {[%clk 0:03:01.1]}
2... Nc6 {[%clk 0:02:59.2]} 3. Bc4 {[%clk 0:02:58.2]} 3... Bc5 {[%clk
0:02:58.3]} 4. d4 {[%clk 0:02:52.3]} 4... Bxd4 {[%clk 0:02:48]} 5. c3 {[%clk
0:02:48.2]} 5... Bb6 {[%clk 0:02:46.1]} 6. b4 {[%clk 0:02:02.5]} 6... d6 {[%clk
0:02:43]} 7. b5 {[%clk 0:01:59.5]} 7... Na5 {[%clk 0:02:28]} 8. Bd5 {[%clk
0:01:41.3]} 8... c6 {[%clk 0:02:27.4]} 9. bxc6 {[%clk 0:01:37.9]} 9... bxc6
{[%clk 0:02:27.5]} 10. Bb3 {[%clk 0:01:35.8]} 10... Nxb3 {[%clk 0:02:22.9]} 11.
axb3 {[%clk 0:01:36.7]} 11... h6 {[%clk 0:02:18.3]} 12. h3 {[%clk 0:01:34.9]}
12... Nf6 {[%clk 0:02:18.3]} 13. Qc2 {[%clk 0:01:28.4]} 13... O-O {[%clk
0:02:16.5]} 14. g4 {[%clk 0:01:24.9]} 14... d5 {[%clk 0:02:13.4]} 15. g5 {[%clk
0:01:23.8]} 15... Nxe4 {[%clk 0:02:11.7]} 16. gxh6 {[%clk 0:01:24.2]} 16...
Bxf2+ {[%clk 0:02:06]} 17. Kf1 {[%clk 0:01:22.3]} 17... Qf6 {[%clk 0:01:58.6]}
18. Nbd2 {[%clk 0:01:18.1]} 18... Nxd2+ {[%clk 0:01:47.8]} 19. Qxd2 {[%clk
0:01:02.6]} 19... Qxf3 {[%clk 0:01:41.2]} 20. Qxf2 {[%clk 0:00:56.4]} 20...
Qxh1+ {[%clk 0:01:38.1]} 21. Ke2 {[%clk 0:00:56.9]} 21... Qe4+ {[%clk
0:01:36.5]} 22. Be3 {[%clk 0:00:55.3]} 22... g6 {[%clk 0:01:31.5]} 23. Qf6
{[%clk 0:00:51.7]} 23... Qc2+ {[%clk 0:01:17.5]} 24. Bd2 {[%clk 0:00:44.5]}
24... Ba6+ {[%clk 0:00:54.8]} 25. Rxa6 {[%clk 0:00:33.3]} 25... Qe4+ {[%clk
0:00:54.2]} 26. Kd1 {[%clk 0:00:24.5]} 26... Qb1+ {[%clk 0:00:54]} 27. Bc1
{[%clk 0:00:21]} 27... Qd3+ {[%clk 0:00:48.7]} 28. Ke1 {[%clk 0:00:19.9]} 28...
Qe4+ {[%clk 0:00:23.9]} 29. Kd1 {[%clk 0:00:12.8]} 29... Qd3+ {[%clk 0:00:23.2]}
30. Bd2 {[%clk 0:00:10.8]} 30... Qb1+ {[%clk 0:00:22.9]} 31. Ke2 {[%clk
0:00:10.1]} 31... Qe4+ {[%clk 0:00:22.6]} 32. Be3 {[%clk 0:00:10.6]} 32... Qc2+
{[%clk 0:00:20.6]} 33. Ke1 {[%clk 0:00:10.9]} 33... Qb1+ {[%clk 0:00:14.3]} 34.
Kd2 {[%clk 0:00:05.3]} 34... Qb2+ {[%clk 0:00:14.6]} 35. Kd1 {[%clk 0:00:05.3]}
35... Qb1+ {[%clk 0:00:14.6]} 36. Bc1 {[%clk 0:00:05.2]} 36... Qd3+ {[%clk
0:00:14.8]} 1/2-1/2

[Event "Late-Titled-Tuesday-Blitz-September-05-2023"]
[Site "Chess.com"]
[Date "2023.09.05"]
[Round "2"]
[White "Boorchess"]
[Black "vladislavkovalev"]
[Result "1/2-1/2"]
[WhiteElo "2569"]
[BlackElo "2908"]
[TimeControl "180+1"]
[EndTime "14:17:51 PDT"]
[Termination "Game drawn by repetition"]

1. d4 {[%clk 0:03:00.9]} 1... Nf6 {[%clk 0:03:00]} 2. c4 {[%clk 0:03:00.4]} 2...
e6 {[%clk 0:03:00.7]} 3. Nf3 {[%clk 0:02:59.1]} 3... d5 {[%clk 0:03:01.1]} 4. g3
{[%clk 0:02:59]} 4... h6 {[%clk 0:02:58]} 5. Bg2 {[%clk 0:02:58.2]} 5... Bd6
{[%clk 0:02:58.6]} 6. O-O {[%clk 0:02:56.6]} 6... O-O {[%clk 0:02:58.8]} 7. Nbd2
{[%clk 0:02:53.6]} 7... Nc6 {[%clk 0:02:57.1]} 8. a3 {[%clk 0:02:50.1]} 8... b6
{[%clk 0:02:48.4]} 9. Qc2 {[%clk 0:02:47.1]} 9... Bb7 {[%clk 0:02:47.8]} 10. Re1
{[%clk 0:02:43.2]} 10... e5 {[%clk 0:02:18.8]} 11. cxd5 {[%clk 0:02:22.3]} 11...
Nxd4 {[%clk 0:02:18]} 12. Nxd4 {[%clk 0:02:15.3]} 12... exd4 {[%clk 0:02:18.9]}
13. Nf3 {[%clk 0:01:33]} 13... Bxd5 {[%clk 0:02:12.3]} 14. Nxd4 {[%clk
0:01:31.8]} 14... Bxg2 {[%clk 0:02:10.9]} 15. Kxg2 {[%clk 0:01:31.6]} 15... Re8
{[%clk 0:01:54.9]} 16. Nf5 {[%clk 0:01:23.8]} 16... Bf8 {[%clk 0:01:32.7]} 17.
e4 {[%clk 0:01:03.3]} 17... Nxe4 {[%clk 0:01:06.5]} 18. Nxh6+ {[%clk 0:00:53.6]}
18... gxh6 {[%clk 0:01:07]} 19. Rxe4 {[%clk 0:00:53.7]} 19... Qd5 {[%clk
0:01:06.9]} 20. f3 {[%clk 0:00:54.2]} 20... Rxe4 {[%clk 0:01:07.4]} 21. fxe4
{[%clk 0:00:53.7]} 21... Qb7 {[%clk 0:00:58.1]} 22. Bd2 {[%clk 0:00:49.6]} 22...
Re8 {[%clk 0:00:58.1]} 23. Re1 {[%clk 0:00:50.1]} 23... f5 {[%clk 0:00:58.7]}
24. Qc4+ {[%clk 0:00:49.2]} 24... Kg7 {[%clk 0:00:52.6]} 25. Bc3+ {[%clk
0:00:16.5]} 25... Kg6 {[%clk 0:00:53.1]} 26. h4 {[%clk 0:00:14.4]} 26... Bd6
{[%clk 0:00:11.3]} 27. h5+ {[%clk 0:00:13.7]} 27... Kg5 {[%clk 0:00:12]} 28.
Bd2+ {[%clk 0:00:11.9]} 28... Kf6 {[%clk 0:00:10.2]} 29. Bc3+ {[%clk 0:00:10]}
29... Kg5 {[%clk 0:00:10.8]} 30. Bd2+ {[%clk 0:00:10]} 30... Kf6 {[%clk
0:00:11.5]} 31. Bc3+ {[%clk 0:00:10.5]} 31... Be5 {[%clk 0:00:12.2]} 32. Bxe5+
{[%clk 0:00:08.4]} 32... Rxe5 {[%clk 0:00:13.1]} 33. Qg8 {[%clk 0:00:08.1]}
33... Rxe4 {[%clk 0:00:12.9]} 34. Qf8+ {[%clk 0:00:06.7]} 34... Kg5 {[%clk
0:00:11.2]} 35. Qg7+ {[%clk 0:00:06.9]} 35... Kxh5 {[%clk 0:00:11.9]} 36. Qf7+
{[%clk 0:00:07.3]} 36... Kg5 {[%clk 0:00:12.4]} 37. Qg7+ {[%clk 0:00:07.9]}
37... Kh5 {[%clk 0:00:12]} 38. Qf7+ {[%clk 0:00:08.5]} 38... Kg5 {[%clk
0:00:11.6]} 39. Qg7+ {[%clk 0:00:08.9]} 39... Kh5 {[%clk 0:00:11.8]} 1/2-1/2

[Event "Late-Titled-Tuesday-Blitz-September-05-2023"]
[Site "Chess.com"]
[Date "2023.09.05"]
[Round "2"]
[White "Chess_Star1234"]
[Black "crazy_but_lazy"]
[Result "1/2-1/2"]
[WhiteElo "2350"]
[BlackElo "2588"]
[TimeControl "180+1"]
[EndTime "14:17:52 PDT"]
[Termination "Game drawn by repetition"]

1. d4 {[%clk 0:03:00.9]} 1... d5 {[%clk 0:02:58.4]} 2. c4 {[%clk 0:02:59.7]}
2... e6 {[%clk 0:02:58.6]} 3. Nc3 {[%clk 0:02:59]} 3... a6 {[%clk 0:02:57.6]} 4.
cxd5 {[%clk 0:02:56.1]} 4... exd5 {[%clk 0:02:58.5]} 5. Nf3 {[%clk 0:02:55.2]}
5... c6 {[%clk 0:02:55.3]} 6. Bg5 {[%clk 0:02:53.7]} 6... Nf6 {[%clk 0:02:54]}
7. e3 {[%clk 0:02:53.7]} 7... Bd6 {[%clk 0:02:53.8]} 8. Bd3 {[%clk 0:02:54]}
8... Bg4 {[%clk 0:02:48.3]} 9. Qc2 {[%clk 0:02:50.2]} 9... Nbd7 {[%clk
0:02:43.5]} 10. h3 {[%clk 0:02:39.4]} 10... Bh5 {[%clk 0:02:43.2]} 11. Rb1
{[%clk 0:02:29.9]} 11... Bg6 {[%clk 0:02:40.9]} 12. Bxg6 {[%clk 0:02:24]} 12...
hxg6 {[%clk 0:02:40.8]} 13. O-O {[%clk 0:02:21.5]} 13... Be7 {[%clk 0:02:00]}
14. b4 {[%clk 0:02:16.2]} 14... O-O {[%clk 0:01:59.5]} 15. Rfc1 {[%clk
0:02:15.7]} 15... b5 {[%clk 0:01:43.1]} 16. a4 {[%clk 0:02:13.2]} 16... Nb6
{[%clk 0:01:42.2]} 17. a5 {[%clk 0:02:13.4]} 17... Nc4 {[%clk 0:01:42.6]} 18.
Nd1 {[%clk 0:02:04.4]} 18... Rc8 {[%clk 0:01:38.7]} 19. Qc3 {[%clk 0:02:03.1]}
19... Ne4 {[%clk 0:01:37.3]} 20. Bxe7 {[%clk 0:01:59.1]} 20... Nxc3 {[%clk
0:01:12.6]} 21. Bxd8 {[%clk 0:01:59.3]} 21... Nxb1 {[%clk 0:01:13]} 22. Rxb1
{[%clk 0:01:38]} 22... Rfxd8 {[%clk 0:01:12.4]} 23. Nb2 {[%clk 0:01:34.7]} 23...
f6 {[%clk 0:01:09.3]} 24. Nd3 {[%clk 0:01:34.7]} 24... Ra8 {[%clk 0:01:06.8]}
25. Nc5 {[%clk 0:01:34.7]} 25... Kf7 {[%clk 0:01:07.2]} 26. Ne1 {[%clk
0:01:34.4]} 26... g5 {[%clk 0:01:04.8]} 27. Ned3 {[%clk 0:01:34.9]} 27... Re8
{[%clk 0:01:03.2]} 28. g3 {[%clk 0:01:33.9]} 28... Re7 {[%clk 0:01:02.8]} 29.
Kg2 {[%clk 0:01:33.8]} 29... Rea7 {[%clk 0:00:59.2]} 30. Re1 {[%clk 0:01:30]}
30... Re8 {[%clk 0:00:59.4]} 31. Rh1 {[%clk 0:01:29.5]} 31... Nd6 {[%clk
0:00:54.2]} 32. h4 {[%clk 0:01:29.4]} 32... gxh4 {[%clk 0:00:54.4]} 33. Rxh4
{[%clk 0:01:29.9]} 33... Nf5 {[%clk 0:00:51.6]} 34. Rh5 {[%clk 0:01:27.3]} 34...
Nd6 {[%clk 0:00:49.3]} 35. Rh1 {[%clk 0:01:27.3]} 35... Nc4 {[%clk 0:00:48.3]}
36. Rh2 {[%clk 0:01:27.3]} 36... Kg6 {[%clk 0:00:44.4]} 37. Rh4 {[%clk
0:01:26.8]} 37... Kf7 {[%clk 0:00:44.4]} 38. Rh2 {[%clk 0:01:27]} 38... Nd6
{[%clk 0:00:42.6]} 39. Kf3 {[%clk 0:01:26.1]} 39... Ne4 {[%clk 0:00:40.5]} 40.
Rh1 {[%clk 0:01:25.7]} 40... Nd2+ {[%clk 0:00:34.8]} 41. Ke2 {[%clk 0:01:26.1]}
41... Nc4 {[%clk 0:00:35.7]} 42. Kf3 {[%clk 0:01:26.6]} 42... Rae7 {[%clk
0:00:33.4]} 43. Re1 {[%clk 0:01:21.5]} 43... Ra8 {[%clk 0:00:29.1]} 44. Kg2
{[%clk 0:01:21.5]} 44... Nd6 {[%clk 0:00:27.9]} 45. Kf3 {[%clk 0:01:21]} 45...
g5 {[%clk 0:00:27.9]} 46. Kg2 {[%clk 0:01:21.5]} 46... Kg6 {[%clk 0:00:28.5]}
47. Rh1 {[%clk 0:01:22]} 47... Nc4 {[%clk 0:00:28.5]} 48. Re1 {[%clk 0:01:21.8]}
48... Rh7 {[%clk 0:00:28.8]} 49. Rh1 {[%clk 0:01:21.3]} 49... Rxh1 {[%clk
0:00:25.7]} 50. Kxh1 {[%clk 0:01:22.2]} 50... Kf5 {[%clk 0:00:25.2]} 51. Kg2
{[%clk 0:01:21.3]} 51... g4 {[%clk 0:00:24.8]} 52. Kg1 {[%clk 0:01:19.3]} 52...
Nd6 {[%clk 0:00:21.8]} 53. Kg2 {[%clk 0:01:19.7]} 53... Ne4 {[%clk 0:00:22.2]}
54. Kg1 {[%clk 0:01:20.4]} 54... Nd2 {[%clk 0:00:19.6]} 55. Kg2 {[%clk
0:01:18.4]} 55... Nf3 {[%clk 0:00:19.3]} 56. Kf1 {[%clk 0:01:13.7]} 56... Nd2+
{[%clk 0:00:17.3]} 57. Kg2 {[%clk 0:01:13.5]} 57... Nc4 {[%clk 0:00:18.2]} 58.
Kg1 {[%clk 0:01:13.8]} 58... Kg5 {[%clk 0:00:17.9]} 59. Kg2 {[%clk 0:01:14.3]}
59... Kg6 {[%clk 0:00:18]} 60. Kg1 {[%clk 0:01:14.9]} 60... Kf5 {[%clk
0:00:17.7]} 61. Kg2 {[%clk 0:01:15.6]} 61... Nd6 {[%clk 0:00:17.8]} 62. Kg1
{[%clk 0:01:16.1]} 62... Ne4 {[%clk 0:00:18.4]} 63. Kg2 {[%clk 0:01:16.8]} 63...
Nd6 {[%clk 0:00:17.9]} 64. Kg1 {[%clk 0:01:17.4]} 64... Ra7 {[%clk 0:00:18.8]}
65. Kg2 {[%clk 0:01:18]} 65... Nc4 {[%clk 0:00:19.2]} 66. Kg1 {[%clk 0:01:18.5]}
66... Nd2 {[%clk 0:00:19.8]} 67. Kg2 {[%clk 0:01:19.1]} 67... Nf3 {[%clk
0:00:20.3]} 68. Kf1 {[%clk 0:01:19.6]} 68... Nd2+ {[%clk 0:00:20.3]} 69. Kg2
{[%clk 0:01:20.1]} 69... Nc4 {[%clk 0:00:18.3]} 70. Kg1 {[%clk 0:01:20.7]} 70...
Nd6 {[%clk 0:00:18.7]} 71. Kg2 {[%clk 0:01:21.4]} 71... Ne4 {[%clk 0:00:19.3]}
72. Kg1 {[%clk 0:01:21.8]} 72... Ra8 {[%clk 0:00:17.2]} 73. Kg2 {[%clk
0:01:21.8]} 73... Ng5 {[%clk 0:00:16.9]} 74. Kg1 {[%clk 0:01:22.2]} 74... Nf3+
{[%clk 0:00:17.4]} 75. Kf1 {[%clk 0:01:22.8]} 75... Nh2+ {[%clk 0:00:17]} 76.
Kg2 {[%clk 0:01:23.2]} 76... Nf3 {[%clk 0:00:17.9]} 77. Kf1 {[%clk 0:01:23.5]}
1/2-1/2

[Event "Late-Titled-Tuesday-Blitz-September-05-2023"]
[Site "Chess.com"]
[Date "2023.09.05"]
[Round "2"]
[White "alturas_pacificas"]
[Black "cthake"]
[Result "1-0"]
[WhiteElo "2402"]
[BlackElo "1873"]
[TimeControl "180+1"]
[EndTime "14:17:54 PDT"]
[Termination "alturas_pacificas won on time"]

1. d4 {[%clk 0:03:00.9]} 1... Nf6 {[%clk 0:02:58.9]} 2. Bf4 {[%clk 0:03:01.4]}
2... e6 {[%clk 0:02:58.3]} 3. e3 {[%clk 0:03:02.1]} 3... d5 {[%clk 0:02:58.6]}
4. Nd2 {[%clk 0:03:02.8]} 4... c5 {[%clk 0:02:58.8]} 5. Ngf3 {[%clk 0:03:03.3]}
5... Qb6 {[%clk 0:02:58.7]} 6. b3 {[%clk 0:03:03.2]} 6... Nc6 {[%clk 0:02:58]}
7. c3 {[%clk 0:03:03.5]} 7... Be7 {[%clk 0:02:56.5]} 8. Bd3 {[%clk 0:03:03.9]}
8... O-O {[%clk 0:02:55.8]} 9. O-O {[%clk 0:03:04.5]} 9... Bd7 {[%clk
0:02:46.7]} 10. Ne5 {[%clk 0:03:04.7]} 10... Nxe5 {[%clk 0:02:45]} 11. Bxe5
{[%clk 0:03:05.6]} 11... Bc6 {[%clk 0:02:36.1]} 12. h3 {[%clk 0:03:04.4]} 12...
h6 {[%clk 0:02:34.7]} 13. c4 {[%clk 0:03:03.6]} 13... Nd7 {[%clk 0:02:29.5]} 14.
Bg3 {[%clk 0:03:02.9]} 14... cxd4 {[%clk 0:02:27.7]} 15. exd4 {[%clk 0:03:00.1]}
15... Qxd4 {[%clk 0:02:27.2]} 16. Nf3 {[%clk 0:03:00.8]} 16... Qf6 {[%clk
0:02:20.4]} 17. Rc1 {[%clk 0:02:54.4]} 17... Rac8 {[%clk 0:02:14]} 18. Re1
{[%clk 0:02:52.4]} 18... Rfd8 {[%clk 0:02:06]} 19. Qe2 {[%clk 0:02:51.6]} 19...
dxc4 {[%clk 0:02:03.9]} 20. Bxc4 {[%clk 0:02:51.5]} 20... Bxf3 {[%clk
0:02:03.1]} 21. Qxf3 {[%clk 0:02:50.9]} 21... Qxf3 {[%clk 0:02:02.8]} 22. gxf3
{[%clk 0:02:51.8]} 22... Bg5 {[%clk 0:01:51.3]} 23. Rcd1 {[%clk 0:02:51.1]}
23... Nb6 {[%clk 0:01:43.8]} 24. Rxd8+ {[%clk 0:02:48.2]} 24... Rxd8 {[%clk
0:01:43]} 25. Bc7 {[%clk 0:02:48.9]} 25... Rd2 {[%clk 0:01:37.9]} 26. Bxb6
{[%clk 0:02:48.6]} 26... axb6 {[%clk 0:01:37.4]} 27. Re2 {[%clk 0:02:49.1]}
27... Rd1+ {[%clk 0:01:34.7]} 28. Kg2 {[%clk 0:02:48.9]} 28... Kf8 {[%clk
0:01:29]} 29. a4 {[%clk 0:02:48.9]} 29... Bf4 {[%clk 0:01:21.1]} 30. Re4 {[%clk
0:02:49]} 30... g5 {[%clk 0:01:14.7]} 31. Be2 {[%clk 0:02:47.3]} 31... Rd2
{[%clk 0:01:06.8]} 32. Bb5 {[%clk 0:02:42.4]} 32... Ke7 {[%clk 0:01:04.6]} 33.
Rc4 {[%clk 0:02:40.6]} 33... Rb2 {[%clk 0:00:57.6]} 34. Rc3 {[%clk 0:02:39.6]}
34... Bd6 {[%clk 0:00:52.3]} 35. Rd3 {[%clk 0:02:38.6]} 35... Bc5 {[%clk
0:00:49.8]} 36. Rd7+ {[%clk 0:02:38]} 36... Kf6 {[%clk 0:00:49.8]} 37. Rxb7
{[%clk 0:02:37.5]} 37... Bxf2 {[%clk 0:00:49.8]} 38. Kh1 {[%clk 0:02:37.9]}
38... Bc5 {[%clk 0:00:45.8]} 39. Be8 {[%clk 0:02:37.1]} 39... Rxb3 {[%clk
0:00:43]} 40. Rxf7+ {[%clk 0:02:37.3]} 40... Ke5 {[%clk 0:00:41.5]} 41. Rh7
{[%clk 0:02:37.7]} 41... Rxf3 {[%clk 0:00:36.5]} 42. Rxh6 {[%clk 0:02:36.3]}
42... Rf1+ {[%clk 0:00:34]} 43. Kg2 {[%clk 0:02:36.5]} 43... Rf6 {[%clk
0:00:29.6]} 44. Rh5 {[%clk 0:02:33.7]} 44... Kf4 {[%clk 0:00:28.9]} 45. Bc6
{[%clk 0:02:27]} 45... e5 {[%clk 0:00:28.3]} 46. Bb5 {[%clk 0:02:27.5]} 46... e4
{[%clk 0:00:28.4]} 47. h4 {[%clk 0:02:24.8]} 47... g4 {[%clk 0:00:25.2]} 48. Rd5
{[%clk 0:02:15.4]} 48... e3 {[%clk 0:00:24.2]} 49. Rd1 {[%clk 0:02:15.8]} 49...
Re6 {[%clk 0:00:21.9]} 50. Re1 {[%clk 0:02:15.9]} 50... Bb4 {[%clk 0:00:21.1]}
51. Re2 {[%clk 0:02:15.9]} 51... Rh6 {[%clk 0:00:20.3]} 52. Rb2 {[%clk
0:02:11.1]} 52... Bd2 {[%clk 0:00:17.3]} 53. Be2 {[%clk 0:01:59.7]} 53... Rxh4
{[%clk 0:00:17.1]} 54. Rxb6 {[%clk 0:01:59.5]} 54... Rh5 {[%clk 0:00:15.2]} 55.
Rf6+ {[%clk 0:01:57.6]} 55... Ke5 {[%clk 0:00:14.5]} 56. Rb6 {[%clk 0:01:43.7]}
56... Rg5 {[%clk 0:00:10]} 57. Rb5+ {[%clk 0:01:37.1]} 57... Kf6 {[%clk
0:00:09.1]} 58. Rb6+ {[%clk 0:01:33.8]} 58... Ke5 {[%clk 0:00:08.9]} 59. Kg3
{[%clk 0:01:32.9]} 59... Kd4 {[%clk 0:00:04.1]} 60. Bxg4 {[%clk 0:01:30]} 60...
Ra5 {[%clk 0:00:03.7]} 61. Rd6+ {[%clk 0:01:24.4]} 61... Kc3 {[%clk 0:00:03.7]}
62. Bd1 {[%clk 0:01:17]} 62... e2 {[%clk 0:00:01]} 63. Rc6+ {[%clk 0:01:15.6]}
1-0